bitfinex-derivatives/quotes_BTCF0:USTF0_20241213
["timestamp","ask_amount","ask_price","bid_price","bid_amount"]
[1734103392801,0.24267884,101240.0,101230.0,1.13832198]
[1734103393097,0.04937,101260.0,101250.0,0.04937]
[1734103393292,0.05883962,101260.0,101250.0,0.72930713]
[1734103393493,0.05883962,101260.0,101250.0,1.13591855]
[1734103393693,0.15760017,101260.0,101250.0,1.49671855]
[1734103394291,0.16460017,101260.0,101250.0,1.507245]
[1734103395308,0.16860017,101260.0,101250.0,1.507245]
[1734103396298,0.16160017,101260.0,101250.0,1.19149492]
[1734103396501,0.16360017,101260.0,101250.0,1.59767174]
[1734103397095,0.16360017,101260.0,101250.0,1.2850137]
[1734103397792,0.11423017,101260.0,101250.0,1.69124845]
[1734103397997,0.16360017,101260.0,101250.0,1.69124845]
[1734103398200,0.16360017,101260.0,101250.0,1.59760733]
[1734103399803,0.11423017,101260.0,101250.0,1.69112611]
[1734103400103,0.10476055,101260.0,101250.0,1.43529039]
[1734103400491,0.42985803,101280.0,101250.0,1.82880917]
[1734103400695,0.3608,101290.0,101270.0,0.50368378]
[1734103400891,0.18875321,101300.0,101290.0,0.049355]
[1734103401096,0.15919326,101300.0,101290.0,0.410155]
[1734103401293,0.19832569,101300.0,101290.0,0.50367378]
[1734103401601,0.15906596,101300.0,101290.0,0.8433469]
[1734103402306,0.10971596,101300.0,101290.0,1.19395498]
[1734103402501,0.11571596,101300.0,101290.0,1.58635943]
[1734103402708,0.11376055,101300.0,101290.0,1.58735943]
[1734103403209,0.16311055,101300.0,101290.0,1.18926469]
[1734103403404,0.16311055,101300.0,101290.0,1.09574591]
[1734103403609,0.11376055,101300.0,101290.0,1.09574591]
[1734103403801,0.11376055,101300.0,101290.0,1.68047817]
[1734103404204,0.11376055,101300.0,101290.0,1.28326469]
[1734103404408,0.05858611,101310.0,101300.0,0.04935]
[1734103404603,0.05858611,101310.0,101300.0,0.74413283]
[1734103404808,0.15730766,101310.0,101300.0,0.38333283]
[1734103405113,0.15730766,101310.0,101300.0,0.04935]
[1734103405306,0.17671578,101310.0,101300.0,0.04935]
[1734103405501,0.12736978,101310.0,101290.0,0.4548]
[1734103405698,0.41015,101300.0,101290.0,0.47123798]
[1734103405896,0.41015,101300.0,101290.0,0.42188298]
[1734103406099,0.14286878,101300.0,101290.0,0.42188298]
[1734103406308,0.50886181,101300.0,101290.0,0.47123798]
[1734103406806,0.50886181,101300.0,101290.0,0.47223798]
[1734103407007,0.14806181,101300.0,101290.0,0.47223798]
[1734103407212,0.10171181,101300.0,101290.0,0.56475676]
[1734103407912,0.10171181,101300.0,101290.0,0.23687378]
[1734103408813,0.10171181,101300.0,101290.0,0.143355]
[1734103409113,0.60538059,101300.0,101290.0,0.143355]
[1734103409307,0.51186181,101300.0,101290.0,0.143355]
[1734103410803,0.50886181,101300.0,101290.0,0.143355]
[1734103411008,0.51786181,101300.0,101290.0,0.143355]
[1734103412012,0.10771181,101300.0,101290.0,0.59767378]
[1734103412221,0.009,101300.0,101290.0,0.59767378]
[1734103412413,0.3608,101320.0,101310.0,0.049346]
[1734103412809,0.45952155,101320.0,101310.0,0.049346]
[1734103413008,0.09872155,101320.0,101310.0,0.68376478]
[1734103413716,0.09872155,101320.0,101310.0,0.68476478]
[1734103413717,0.10772155,101320.0,101310.0,0.68476478]
[1734103414308,0.009,101320.0,101310.0,1.10230093]
[1734103414509,0.410127,101350.0,101340.0,0.049331]
[1734103414823,0.46869952,101350.0,101340.0,0.14284978]
[1734103415011,0.45950206,101350.0,101340.0,0.14284978]
[1734103415214,0.09870206,101350.0,101340.0,0.049331]
[1734103415414,0.09870206,101350.0,101340.0,0.139131]
[1734103415806,0.10070206,101350.0,101340.0,0.139131]
[1734103416009,0.10070206,101350.0,101340.0,0.499931]
[1734103417209,0.09970206,101350.0,101340.0,0.499931]
[1734103417619,0.14902806,101350.0,101340.0,0.229031]
[1734103417918,0.14902806,101350.0,101340.0,0.139131]
[1734103418223,0.14902806,101350.0,101330.0,0.51291082]
[1734103418224,0.049333,101340.0,101330.0,0.049335]
[1734103418525,0.001,101350.0,101340.0,0.049331]
[1734103418818,0.001,101350.0,101340.0,0.59714978]
[1734103418819,0.09968258,101350.0,101340.0,0.59714978]
[1734103419323,0.14900858,101350.0,101340.0,0.503631]
[1734103419720,0.09968258,101350.0,101340.0,0.503631]
[1734103420221,0.09968258,101350.0,101340.0,0.59814978]
[1734103420520,0.09868258,101350.0,101340.0,0.59814978]
[1734103421220,0.50797873,101360.0,101340.0,0.59814978]
[1734103421420,0.09867285,101350.0,101340.0,0.59814978]
[1734103421818,0.049326,101350.0,101340.0,0.59814978]
[1734103422017,0.14799398,101350.0,101340.0,0.59814978]
[1734103422814,0.14799398,101350.0,101340.0,0.504631]
[1734103424322,0.14899398,101350.0,101340.0,0.504631]
[1734103425522,0.50797873,101360.0,101340.0,0.504631]
[1734103425723,0.14799885,101350.0,101340.0,0.504631]
[1734103426020,0.049326,101350.0,101340.0,0.504631]
[1734103426236,0.14799885,101350.0,101340.0,0.504631]
[1734103426622,0.14799885,101350.0,101340.0,0.503631]
[1734103427123,0.09867285,101350.0,101340.0,0.410131]
[1734103427434,0.09967285,101350.0,101340.0,0.50364978]
[1734103427721,0.00935573,101360.0,101350.0,0.049326]
[1734103427927,0.51974124,101370.0,101360.0,0.049321]
[1734103428125,0.51974124,101370.0,101360.0,0.14283978]
[1734103428126,0.41946704,101370.0,101360.0,0.14283978]
[1734103428314,0.41946704,101370.0,101360.0,0.144521]
[1734103428315,0.51813989,101370.0,101360.0,0.144521]
[1734103428521,0.15733989,101370.0,101360.0,0.144521]
[1734103428921,0.09867285,101370.0,101360.0,0.505321]
[1734103429224,0.4557,101380.0,101370.0,0.049316]
[1734103429225,0.505013,101380.0,101370.0,0.049316]
[1734103429625,0.60366638,101380.0,101370.0,0.049316]
[1734103431029,0.60366638,101380.0,101370.0,0.050316]
[1734103431422,0.60366638,101380.0,101370.0,0.14383478]
[1734103432621,0.60966638,101380.0,101370.0,0.14483478]
[1734103433227,0.60366638,101380.0,101370.0,0.14383478]
[1734103433422,0.60766638,101380.0,101370.0,0.050316]
[1734103435627,0.60766638,101380.0,101370.0,0.14383478]
[1734103436332,0.60766638,101380.0,101370.0,0.050316]
[1734103437032,0.55835338,101380.0,101370.0,0.14383478]
[1734103438527,0.60766438,101380.0,101370.0,0.050316]
[1734103438727,0.70118316,101380.0,101370.0,0.001]
[1734103439431,0.60766438,101380.0,101370.0,0.001]
[1734103439622,0.70118316,101380.0,101370.0,0.001]
[1734103440028,0.60766438,101380.0,101370.0,0.001]
[1734103440838,0.70118316,101380.0,101370.0,0.001]
[1734103442538,0.60766438,101380.0,101370.0,0.050316]
[1734103443338,0.60766438,101380.0,101370.0,0.001]
[1734103443927,0.60766438,101380.0,101370.0,0.050316]
[1734103444332,0.60766438,101380.0,101370.0,0.14383478]
[1734103445338,0.19755338,101380.0,101370.0,1.08342188]
[1734103445644,0.53664543,101390.0,101380.0,0.049311]
[1734103445832,0.53664543,101390.0,101380.0,0.639409]
[1734103446241,0.63528907,101390.0,101380.0,0.639409]
[1734103446448,0.63528907,101390.0,101380.0,0.049311]
[1734103446940,0.64128907,101390.0,101380.0,0.050311]
[1734103447136,0.64128907,101390.0,101380.0,0.051311]
[1734103448231,0.64128907,101390.0,101380.0,0.34248916]
[1734103449139,0.64128907,101390.0,101380.0,0.29317816]
[1734103449140,0.73480785,101390.0,101380.0,0.29317816]
[1734103449345,0.28048907,101390.0,101380.0,0.34248916]
[1734103449543,0.23118007,101390.0,101380.0,1.09031561]
[1734103449843,0.28048707,101390.0,101380.0,1.09031561]
[1734103450156,0.28048707,101390.0,101380.0,1.44092369]
[1734103450535,0.64128707,101390.0,101380.0,0.14482978]
[1734103450939,0.64128707,101390.0,101380.0,0.37773467]
[1734103451943,0.49628007,101390.0,101380.0,0.37773467]
[1734103452146,0.00748026,101390.0,101380.0,0.83173467]
[1734103452344,0.3668,101390.0,101380.0,1.03282294]
[1734103452651,0.10463392,101390.0,101380.0,1.39362294]
[1734103452847,0.10463392,101390.0,101380.0,1.12291283]
[1734103453039,0.10463392,101390.0,101380.0,1.3938715]
[1734103453240,0.006,101390.0,101380.0,1.12291283]
[1734103453436,0.006,101390.0,101380.0,1.39377348]
[1734103454348,0.006,101390.0,101380.0,1.3937208]
[1734103454554,0.006,101390.0,101380.0,1.03292533]
[1734103454751,0.10463392,101390.0,101380.0,1.03292533]
[1734103455446,0.10463392,101390.0,101380.0,0.76206468]
[1734103455749,0.10463392,101390.0,101380.0,0.47088652]
[1734103455952,0.15394092,101390.0,101380.0,0.47088652]
[1734103456265,0.10463392,101390.0,101380.0,0.76206468]
[1734103456458,0.10463392,101390.0,101380.0,0.84986468]
[1734103456751,0.10463392,101390.0,101380.0,1.24443093]
[1734103457644,0.15394092,101390.0,101380.0,1.11659981]
[1734103458154,0.15394092,101390.0,101380.0,0.37747988]
[1734103458155,0.6082597,101390.0,101380.0,0.37747988]
[1734103458453,0.6994597,101390.0,101380.0,0.50290827]
[1734103458650,0.88256943,101390.0,101380.0,0.40970827]
[1734103459051,0.78905065,101390.0,101380.0,0.45901927]
[1734103460447,0.55663392,101390.0,101380.0,0.45901927]
[1734103460656,0.60594092,101390.0,101380.0,0.54561927]
[1734103461348,0.60594092,101390.0,101380.0,0.37087988]
[1734103463160,0.69455065,101390.0,101380.0,0.545584]
[1734103463550,0.60594092,101390.0,101380.0,0.545584]
[1734103463948,0.6994597,101390.0,101380.0,0.545584]
[1734103464151,0.78806943,101390.0,101380.0,0.496273]
[1734103464554,0.79769499,101390.0,101380.0,0.545584]
[1734103464748,0.70417621,101390.0,101380.0,0.545584]
[1734103465157,0.11425948,101390.0,101380.0,0.37087988]
[1734103465355,0.006,101390.0,101380.0,1.33396112]
[1734103465550,0.10463392,101390.0,101380.0,1.24044234]
[1734103465863,0.10463392,101390.0,101380.0,1.33396112]
[1734103466050,0.10463392,101390.0,101380.0,1.6845692]
[1734103466747,0.10463392,101390.0,101380.0,1.59105042]
[1734103466953,0.10463392,101390.0,101380.0,1.24044234]
[1734103468452,0.10463392,101390.0,101380.0,0.87964234]
[1734103469355,0.10463392,101390.0,101380.0,0.88213008]
[1734103469954,0.51474092,101390.0,101380.0,0.88213008]
[1734103470554,0.51474092,101390.0,101380.0,1.11511265]
[1734103471153,0.51474092,101390.0,101380.0,0.84557173]
[1734103471354,0.51474092,101390.0,101380.0,1.11635004]
[1734103471659,0.6082597,101390.0,101380.0,0.5457115]
[1734103471858,0.7927597,101390.0,101380.0,0.5457115]
[1734103472458,0.7927597,101390.0,101380.0,0.49648312]
[1734103472766,0.88136943,101390.0,101380.0,0.49648312]
[1734103473559,0.88136943,101390.0,101380.0,0.32158257]
[1734103474152,0.88136943,101390.0,101380.0,0.37089357]
[1734103474357,0.78785065,101390.0,101380.0,0.37089357]
[1734103475148,0.79748284,101390.0,101380.0,0.64241454]
[1734103475462,0.79748284,101390.0,101380.0,0.9335927]
[1734103476252,0.61298284,101390.0,101380.0,0.9335927]
[1734103477757,0.60335065,101390.0,101380.0,0.9335927]
[1734103480661,0.69885065,101390.0,101380.0,0.9335927]
[1734103481352,0.69885065,101390.0,101380.0,0.8842817]
[1734103481557,0.99863911,101390.0,101380.0,0.7976817]
[1734103481757,0.99863911,101390.0,101380.0,0.79703377]
[1734103482062,0.99863911,101390.0,101380.0,0.23498257]
[1734103482658,0.99863911,101390.0,101380.0,0.28429357]
[1734103482659,0.90512033,101390.0,101380.0,0.28429357]
[1734103483671,0.99863911,101390.0,101380.0,0.28429357]
[1734103484665,0.91002938,101390.0,101380.0,0.23498257]
[1734103485162,0.99867785,101390.0,101380.0,0.23498257]
[1734103485363,0.99867785,101390.0,101380.0,0.41020876]
[1734103485767,0.91002938,101390.0,101380.0,0.41020876]
[1734103487067,1.15125893,101390.0,101380.0,0.17722619]
[1734103488272,1.15125893,101390.0,101380.0,0.41020876]
[1734103488273,1.00402938,101390.0,101380.0,0.41020876]
[1734103492377,1.00402938,101390.0,101380.0,0.17722619]
[1734103492773,1.09264454,101390.0,101380.0,0.17722619]
[1734103495270,1.15125893,101390.0,101380.0,0.17722619]
[1734103495575,1.00402938,101390.0,101380.0,0.17722619]
[1734103495777,0.90511352,101390.0,101380.0,0.45951976]
[1734103495963,0.78694384,101390.0,101380.0,0.45951976]
[1734103496163,0.78694384,101390.0,101380.0,0.28429357]
[1734103496571,0.42614384,101390.0,101380.0,0.8453691]
[1734103496770,0.33804384,101390.0,101380.0,0.84560114]
[1734103496976,0.24254384,101390.0,101380.0,0.84560114]
[1734103497180,0.24254384,101390.0,101380.0,0.93430114]
[1734103497573,0.60334384,101390.0,101380.0,1.02781992]
[1734103497773,0.60334384,101390.0,101380.0,0.93430114]
[1734103498277,0.60334384,101390.0,101380.0,0.70131857]
[1734103500083,0.006,101390.0,101380.0,1.50624543]
[1734103500380,0.006,101390.0,101380.0,1.68396011]
[1734103501302,0.006,101390.0,101380.0,1.33335203]
[1734103501480,2.62410292,101400.0,101380.0,1.73221337]
[1734103501681,2.62410292,101400.0,101390.0,0.89095069]
[1734103501974,2.63413392,101400.0,101390.0,1.51163044]
[1734103502384,2.63413392,101400.0,101390.0,1.1610801]
[1734103502983,2.63413392,101400.0,101390.0,1.51263044]
[1734103503183,2.63413392,101400.0,101390.0,1.1620801]
[1734103503371,2.99893392,101400.0,101390.0,0.8012801]
[1734103503680,3.13683884,101400.0,101390.0,0.37909945]
[1734103503890,3.13683884,101400.0,101390.0,0.67122436]
[1734103504089,3.22635762,101400.0,101390.0,0.37909945]
[1734103504384,3.13683884,101400.0,101390.0,0.37909945]
[1734103504686,3.13683884,101400.0,101390.0,0.55428143]
[1734103504881,3.13683884,101400.0,101390.0,0.37909945]
[1734103504882,3.25500852,101400.0,101390.0,0.37909945]
[1734103505090,3.25500852,101400.0,101390.0,0.5542912]
[1734103506684,3.13683884,101400.0,101390.0,0.5542912]
[1734103506886,3.25500852,101400.0,101390.0,0.5542912]
[1734103507189,3.13683884,101400.0,101390.0,0.5049842]
[1734103507387,3.13683884,101400.0,101390.0,0.4097842]
[1734103507578,3.25500852,101400.0,101390.0,0.4097842]
[1734103507886,3.25500852,101400.0,101390.0,0.4590912]
[1734103509179,3.13683884,101400.0,101390.0,0.4590912]
[1734103511590,3.25500852,101400.0,101390.0,0.17619175]
[1734103512386,3.25500852,101400.0,101390.0,0.22549875]
[1734103514894,3.05500852,101400.0,101390.0,0.22549875]
[1734103515888,3.05500852,101400.0,101390.0,0.31489875]
[1734103517090,2.9664056,101400.0,101390.0,0.37329945]
[1734103518394,2.98634133,101400.0,101390.0,0.28389945]
[1734103518788,2.98634133,101400.0,101390.0,0.23459245]
[1734103519290,2.93598133,101400.0,101390.0,0.23459245]
[1734103520698,2.93598133,101400.0,101390.0,0.37741823]
[1734103521184,2.93598133,101400.0,101390.0,0.55249305]
[1734103521185,3.02458584,101400.0,101390.0,0.55249305]
[1734103521386,3.02458584,101400.0,101390.0,0.45897427]
[1734103521586,3.02458584,101400.0,101390.0,0.40966727]
[1734103522395,3.02950011,101400.0,101390.0,0.17607482]
[1734103522688,3.02950011,101400.0,101390.0,0.40966727]
[1734103522689,2.93598133,101400.0,101390.0,0.40966727]
[1734103523592,3.02950011,101400.0,101390.0,0.40966727]
[1734103523808,3.23523544,101400.0,101390.0,0.001]
[1734103524187,3.08800589,101400.0,101390.0,0.001]
[1734103524391,3.08800589,101400.0,101370.0,0.40866727]
[1734103524392,0.049307,101390.0,101370.0,0.40866727]
[1734103524589,1.07125794,101380.0,101370.0,0.40866727]
[1734103524806,1.03683292,101380.0,101370.0,0.17507482]
[1734103525105,1.01726959,101380.0,101370.0,0.17507482]
[1734103525284,1.11078837,101380.0,101370.0,0.17507482]
[1734103525485,0.049316,101370.0,101360.0,0.16032781]
[1734103525785,0.049326,101350.0,101340.0,0.00116]
[1734103525985,0.97771667,101350.0,101340.0,0.00116]
[1734103526195,1.03679972,101350.0,101340.0,0.00116]
[1734103526394,0.98243291,101350.0,101340.0,0.00116]
[1734103526591,1.25877739,101350.0,101340.0,0.00116]
[1734103526791,1.16525861,101350.0,101340.0,0.00116]
[1734103527097,0.049341,101320.0,101310.0,0.23359245]
[1734103527399,0.49863921,101330.0,101310.0,0.14286478]
[1734103527585,0.410138,101330.0,101320.0,0.049341]
[1734103527898,0.09867285,101330.0,101320.0,0.23655978]
[1734103528096,0.09867285,101330.0,101320.0,0.72914069]
[1734103528297,0.09867285,101330.0,101320.0,0.36834069]
[1734103528485,0.09867285,101330.0,101320.0,1.02914069]
[1734103528693,0.3608,101340.0,101330.0,0.049336]
[1734103528890,0.596622,101360.0,101350.0,0.049326]
[1734103528891,0.139422,101360.0,101350.0,0.049326]
[1734103529099,0.41972483,101370.0,101360.0,0.049321]
[1734103529396,0.41972483,101370.0,101360.0,0.143021]
[1734103529598,0.51840741,101370.0,101360.0,0.143021]
[1734103529993,0.46909041,101370.0,101360.0,0.23653978]
[1734103530296,0.46909041,101370.0,101340.0,0.14113]
[1734103530297,0.049326,101350.0,101340.0,0.14113]
[1734103530599,0.86444478,101350.0,101340.0,0.0965]
[1734103530802,0.86444478,101350.0,101320.0,0.29212491]
[1734103530803,0.049331,101340.0,101320.0,0.67185636]
[1734103530989,0.049331,101340.0,101320.0,0.8115265]
[1734103530990,0.410136,101330.0,101320.0,0.8115265]
[1734103531189,0.50365478,101330.0,101320.0,0.51940159]
[1734103531502,0.60232763,101330.0,101320.0,0.09250914]
[1734103531796,0.60090885,101330.0,101320.0,0.049339]
[1734103532593,0.45947285,101330.0,101320.0,0.14285778]
[1734103532797,0.45947285,101330.0,101320.0,0.23935778]
[1734103532996,0.45947285,101330.0,101320.0,0.242639]
[1734103533191,0.46147285,101330.0,101320.0,0.242639]
[1734103533392,0.46147285,101330.0,101320.0,0.33615778]
[1734103533691,0.3628,101330.0,101320.0,0.33615778]
[1734103533891,0.3628,101330.0,101320.0,0.242639]
[1734103534094,0.3628,101330.0,101320.0,0.33615778]
[1734103534594,0.3628,101330.0,101320.0,0.242639]
[1734103535700,0.44913704,101360.0,101320.0,0.99695778]
[1734103535908,0.44913704,101360.0,101350.0,0.14284478]
[1734103535909,0.00954885,101360.0,101350.0,0.14284478]
[1734103536094,0.227717,101370.0,101360.0,0.049321]
[1734103536297,0.0891,101370.0,101360.0,0.14283978]
[1734103536701,0.09867771,101370.0,101360.0,0.14283978]
[1734103537199,0.09867771,101370.0,101360.0,0.59463978]
[1734103537509,0.65623866,101390.0,101380.0,0.049311]
[1734103537705,0.3608,101390.0,101380.0,0.14282978]
[1734103538011,0.45945338,101390.0,101380.0,0.14282978]
[1734103538203,0.44913704,101390.0,101380.0,0.14282978]
[1734103538504,0.3608,101390.0,101380.0,0.14282978]
[1734103539007,0.3608,101390.0,101380.0,0.23092978]
[1734103539404,2.73427704,101400.0,101390.0,0.049307]
[1734103539405,2.28514,101400.0,101390.0,0.049307]
[1734103539709,2.47211096,101400.0,101390.0,0.50362578]
[1734103540005,2.38377392,101400.0,101390.0,0.50362578]
[1734103540407,2.79387592,101400.0,101380.0,0.18161878]
[1734103540603,0.3608,101390.0,101380.0,0.137411]
[1734103540807,0.3608,101390.0,101380.0,0.23092978]
[1734103541307,0.45943392,101390.0,101380.0,0.23092978]
[1734103541504,0.3608,101390.0,101380.0,0.23092978]
[1734103541807,0.45943392,101390.0,101380.0,0.23092978]
[1734103542397,0.46043392,101390.0,101380.0,0.23092978]
[1734103543901,0.46043392,101390.0,101380.0,0.14282978]
[1734103544104,0.50974092,101390.0,101380.0,0.14282978]
[1734103544404,0.46043392,101390.0,101380.0,0.14282978]
[1734103544595,0.50974092,101390.0,101380.0,0.14282978]
[1734103544802,0.50974092,101390.0,101370.0,0.23833378]
[1734103545109,0.3608,101380.0,101370.0,0.144815]
[1734103545897,0.45943878,101380.0,101370.0,0.144815]
[1734103546716,0.45943878,101380.0,101370.0,0.37940745]
[1734103547209,0.45943878,101380.0,101370.0,0.145815]
[1734103547910,0.45943878,101380.0,101370.0,0.37940745]
[1734103548413,0.45943878,101380.0,101370.0,0.47292623]
[1734103548603,0.45943878,101380.0,101370.0,0.56644501]
[1734103548809,0.410107,101390.0,101370.0,0.56644501]
[1734103549011,0.410107,101390.0,101380.0,0.09351878]
[1734103549206,0.50874578,101390.0,101380.0,0.09351878]
[1734103549715,0.50874578,101390.0,101370.0,0.37940545]
[1734103549716,0.049311,101380.0,101370.0,0.001]
[1734103550014,0.049321,101360.0,101350.0,0.66856114]
[1734103550213,0.34938413,101360.0,101350.0,0.37643623]
[1734103550601,0.34938413,101360.0,101350.0,0.66856114]
[1734103550807,0.49734877,101360.0,101350.0,0.32602186]
[1734103551106,0.49734877,101360.0,101350.0,0.6909952]
[1734103551304,0.49734877,101360.0,101350.0,0.59747642]
[1734103551508,0.95166755,101360.0,101340.0,0.23256097]
[1734103551697,0.507326,101350.0,101340.0,0.35956079]
[1734103551897,0.35932927,101350.0,101340.0,0.65036833]
[1734103552102,0.35932927,101350.0,101340.0,0.69969933]
[1734103552297,0.45800212,101350.0,101340.0,0.69969933]
[1734103553011,0.45800212,101350.0,101340.0,0.69430088]
[1734103553412,0.45800212,101350.0,101340.0,0.69530088]
[1734103553711,0.45900212,101350.0,101340.0,0.69530088]
[1734103554010,0.40967612,101350.0,101340.0,0.78961017]
[1734103554610,0.09967285,101350.0,101340.0,0.46922373]
[1734103554910,0.001,101350.0,101340.0,1.32864523]
[1734103555118,0.39870713,101360.0,101350.0,0.049326]
[1734103555411,0.49737998,101360.0,101350.0,0.46617757]
[1734103555706,0.49737998,101360.0,101350.0,0.37265879]
[1734103556917,0.59089876,101360.0,101350.0,0.23283279]
[1734103557105,0.68409876,101360.0,101340.0,0.23683279]
[1734103557306,0.59554478,101350.0,101340.0,0.23683279]
[1734103557619,0.59554478,101350.0,101340.0,0.004]
[1734103557809,0.59554478,101350.0,101340.0,0.23705485]
[1734103558007,0.69420789,101350.0,101340.0,0.64501303]
[1734103558409,0.69420789,101350.0,101340.0,0.29080754]
[1734103558603,0.69420789,101350.0,101340.0,0.64113062]
[1734103558818,0.69420789,101350.0,101340.0,0.52403018]
[1734103559014,0.69420789,101350.0,101340.0,0.23322264]
[1734103559414,0.69420789,101350.0,101340.0,0.23422264]
[1734103560304,0.60068911,101350.0,101340.0,0.23422264]
[1734103560620,0.60068911,101350.0,101340.0,0.37707242]
[1734103560621,0.14798911,101350.0,101340.0,0.37707242]
[1734103560807,0.14798911,101350.0,101340.0,0.284387]
[1734103561012,0.14798911,101350.0,101340.0,0.051331]
[1734103561514,0.09866311,101350.0,101340.0,0.70193854]
[1734103561818,0.10166311,101350.0,101340.0,0.70193854]
[1734103562207,0.10166311,101350.0,101340.0,1.04937326]
[1734103562408,0.09866311,101350.0,101340.0,1.05037326]
[1734103562707,0.410123,101360.0,101350.0,0.049326]
[1734103562908,0.410123,101360.0,101350.0,0.9203309]
[1734103563117,0.410123,101360.0,101350.0,0.92005522]
[1734103563315,0.50878611,101360.0,101350.0,0.68690623]
[1734103563917,0.50878611,101360.0,101350.0,0.74602033]
[1734103564509,0.50878611,101360.0,101350.0,1.20286469]
[1734103564710,0.50878611,101360.0,101350.0,0.94291435]
[1734103564915,0.50978611,101360.0,101350.0,1.29276602]
[1734103565116,0.50978611,101360.0,101350.0,0.94291435]
[1734103565417,0.14898611,101360.0,101350.0,0.94291435]
[1734103565715,0.001,101360.0,101350.0,0.94291435]
[1734103565916,0.001,101360.0,101350.0,1.04011435]
[1734103566109,0.001,101360.0,101350.0,1.39003499]
[1734103567021,0.001,101360.0,101350.0,1.04011435]
[1734103567317,0.050321,101360.0,101350.0,1.04011435]
[1734103567522,0.050321,101360.0,101350.0,1.39003246]
[1734103567724,0.001,101360.0,101350.0,1.39003246]
[1734103568111,0.001,101360.0,101350.0,1.45710724]
[1734103570125,0.50978411,101360.0,101350.0,1.39832465]
[1734103570422,0.52172522,101360.0,101350.0,1.21024013]
[1734103570718,0.48015992,101360.0,101350.0,1.21024013]
[1734103571025,0.62038833,101360.0,101350.0,1.03427038]
[1734103571229,0.62038833,101360.0,101350.0,0.68435227]
[1734103571425,0.62038833,101360.0,101350.0,1.03427038]
[1734103571617,0.62038833,101360.0,101350.0,0.68435227]
[1734103572626,0.76061674,101360.0,101350.0,0.52518876]
[1734103572831,1.06061674,101360.0,101350.0,0.23345582]
[1734103573130,0.049336,101330.0,101320.0,0.29173294]
[1734103573427,0.770936,101330.0,101320.0,0.68319815]
[1734103573720,0.049341,101320.0,101310.0,0.43527594]
[1734103573924,0.410141,101320.0,101310.0,0.81372593]
[1734103574319,0.50884306,101320.0,101310.0,0.81372593]
[1734103575123,0.50884306,101320.0,101310.0,0.81472593]
[1734103576338,0.50884306,101320.0,101310.0,0.72052593]
[1734103576627,0.64907147,101320.0,101310.0,0.67118293]
[1734103576821,0.64907147,101320.0,101310.0,0.001]
[1734103577217,0.94907147,101320.0,101310.0,0.001]
[1734103577425,0.049346,101310.0,101300.0,0.1]
[1734103577730,0.55037441,101310.0,101300.0,0.1]
[1734103578121,0.64907647,101310.0,101300.0,0.1]
[1734103578729,0.65007647,101310.0,101300.0,0.106]
[1734103579030,0.65107647,101310.0,101300.0,0.107]
[1734103579428,0.51084806,101310.0,101300.0,0.106]
[1734103579624,0.15004806,101310.0,101300.0,0.15535]
[1734103579817,0.049346,101310.0,101300.0,0.25435]
[1734103580022,0.14805781,101310.0,101300.0,0.54608294]
[1734103580317,0.37020431,101320.0,101310.0,0.049346]
[1734103580318,0.41954631,101320.0,101310.0,0.049346]
[1734103580923,0.51825812,101320.0,101310.0,0.049346]
[1734103581317,0.51825812,101320.0,101310.0,0.34107894]
[1734103581633,0.51825812,101320.0,101310.0,0.050346]
[1734103582229,0.51825812,101320.0,101310.0,0.001]
[1734103582528,0.65848653,101320.0,101310.0,0.001]
[1734103583938,0.95848653,101320.0,101310.0,0.001]
[1734103585826,0.65848653,101320.0,101310.0,0.001]
[1734103586433,0.51825812,101320.0,101310.0,0.001]
[1734103586634,0.65848653,101320.0,101310.0,0.001]
[1734103586938,0.95848653,101320.0,101310.0,0.001]
[1734103587233,0.049346,101310.0,101300.0,0.1]
[1734103587432,1.30627441,101310.0,101280.0,0.64165105]
[1734103587635,0.91118341,101290.0,101280.0,0.66227689]
[1734103587833,0.91118341,101290.0,101280.0,0.29173294]
[1734103588029,0.04936,101280.0,101270.0,0.29173294]
[1734103588331,0.55038841,101280.0,101270.0,0.66357149]
[1734103588531,0.41016,101280.0,101270.0,0.66357149]
[1734103588928,0.64911971,101280.0,101270.0,0.66357149]
[1734103589132,0.049365,101270.0,101260.0,0.29173294]
[1734103589323,0.410165,101270.0,101260.0,0.66431614]
[1734103589529,0.04937,101260.0,101250.0,0.43240494]
[1734103589831,0.55039841,101260.0,101250.0,0.7559248]
[1734103590022,0.55039841,101260.0,101250.0,0.6646248]
[1734103590226,0.53580192,101260.0,101240.0,0.38753294]
[1734103590542,0.04938,101240.0,101230.0,0.34111694]
[1734103591032,0.04938,101240.0,101230.0,0.049384]
[1734103591230,0.14814055,101240.0,101230.0,0.049384]
[1734103591537,0.049385,101230.0,101220.0,0.34112194]
[1734103591840,0.049385,101230.0,101220.0,1.05959846]
[1734103592141,0.14816506,101230.0,101220.0,0.410189]
[1734103592439,0.09878006,101230.0,101220.0,0.55041741]
[1734103592640,0.09878006,101230.0,101220.0,0.85115035]
[1734103592946,0.09878006,101230.0,101220.0,1.2082831]
[1734103593237,0.09878006,101230.0,101220.0,1.06805469]
[1734103593425,0.09878006,101230.0,101220.0,0.419189]
[1734103593631,0.14816506,101230.0,101220.0,0.419189]
[1734103594333,0.14916506,101230.0,101220.0,0.428189]
[1734103594929,0.14916506,101230.0,101220.0,0.3788]
[1734103595436,0.14022841,101230.0,101220.0,0.3788]
[1734103595638,0.59981823,101230.0,101220.0,0.018]
[1734103596239,0.64920323,101230.0,101220.0,0.018]
[1734103596741,0.64121739,101230.0,101220.0,0.018]
[1734103597238,0.64221739,101230.0,101220.0,0.018]
[1734103598237,1.00721739,101230.0,101220.0,0.018]
[1734103598440,0.049394,101210.0,101200.0,0.1]
[1734103598627,0.18962241,101210.0,101200.0,0.1]
[1734103598933,0.55042241,101210.0,101200.0,0.1]
[1734103599133,0.64921223,101210.0,101200.0,0.1]
[1734103599833,0.65021223,101210.0,101200.0,0.109]
[1734103600431,0.95021223,101210.0,101200.0,0.109]
[1734103600642,0.95021223,101210.0,101180.0,0.74923294]
[1734103600643,0.18963241,101190.0,101180.0,0.74923294]
[1734103600840,0.18963241,101190.0,101180.0,0.0967]
[1734103601343,0.28844175,101190.0,101180.0,0.0967]
[1734103601643,0.049402,101200.0,101180.0,1.14982579]
[1734103601838,0.06013095,101210.0,101200.0,0.049399]
[1734103602036,0.050395,101210.0,101200.0,0.410199]
[1734103602237,0.14918387,101210.0,101200.0,0.507899]
[1734103602441,0.14918387,101210.0,101200.0,1.14237368]
[1734103602746,0.14918387,101210.0,101200.0,0.507899]
[1734103603338,0.14922387,101210.0,101200.0,0.508899]
[1734103603946,0.15022387,101210.0,101200.0,0.517899]
[1734103604840,0.15022387,101210.0,101200.0,0.157099]